fUSD/lending_fUSD_20240719
["ID","MTS","AMOUNT","RATE_DAILY","PERIOD"]
[332662428,1721411443938,-500.0,0.00034246,14]
[332662429,1721411443947,-1110.3,0.00034246,14]
[332662430,1721411443956,-1670.33,0.00034246,14]
[332662431,1721411443965,-3295.96,0.00034246,14]
[332662432,1721411443974,-3203.29,0.00034246,14]
[332662433,1721411443983,-12713.43,0.00034246,14]
[332662434,1721411443992,-500.0,0.00034246,14]
[332662435,1721411444002,-9922.87,0.00034246,14]
[332662436,1721411444011,-9856.12750053,0.00034246,14]
[332662437,1721411444028,-359.44640036,0.00034246,14]
[332662438,1721411444040,-992.57555336,0.00034246,14]
[332662439,1721411444051,-750.72000001,0.00034246,14]
[332662440,1721411444063,-375.63054574,0.00034246,14]
[332662441,1721411444073,-510.21652241,0.00034246,14]
[332662442,1721411444084,-1205.17347759,0.00034246,14]
[332662443,1721411444094,-1448.07789538,0.00034246,14]
[332662444,1721411444105,-186.38210462,0.00034246,14]
[332662445,1721411444115,-1440.070811,0.00034246,14]
[332662446,1721411444129,-778.679189,0.00034246,14]
[332662447,1721411444345,-192.428811,0.00034246,14]
[332662449,1721411444410,-296.49800009,0.00034246,14]
[332662450,1721411444423,-256.08990028,0.00034246,14]
[332662451,1721411444435,-523.61985528,0.00034246,14]
[332662452,1721411444446,-400.07483383,0.00034246,14]
[332662453,1721411444457,-680.64859952,0.00034246,14]
[332662454,1721411444467,-579.83,0.00034246,14]
[332662455,1721411444476,-15839.52140048,0.00034246,14]
[332662456,1721411444487,-10693.13483227,0.00034246,14]
[332662457,1721411444497,-422.2567,0.00034246,14]
[332662458,1721411444508,-1983.13706725,0.00034246,14]
[332662459,1721411444517,-1842.31,0.00034246,14]
[332662460,1721411444526,-1411.61293275,0.00034246,14]
[332662461,1721411444536,-1162.94706725,0.00034246,14]
[332662462,1721411444545,-500.0,0.00034246,14]
[332662463,1721411444554,-57.72930238,0.00034246,14]
[332662464,1721411444565,-6612.42069762,0.00034246,14]
[332662465,1721411444574,-6161.10605178,0.00034246,14]
[332662466,1721411444585,-2849.50394822,0.00034246,14]
[332662467,1721411444594,-951.45,0.00034246,14]
[332662468,1721411444603,-1645.9,0.00034246,14]
[332662469,1721411444612,-1951.67,0.00034246,14]
[332662470,1721411444621,-500.0,0.00034246,14]
[332662471,1721411444636,-1689.61,0.00034246,14]
[332662472,1721411444646,-667.57483501,0.00034246,14]
[332662473,1721411444658,-46.44516499,0.00034246,14]
[332662474,1721411444670,-1335.69451108,0.00034246,14]
[332662475,1721411444681,-3432.88,0.00034246,14]
[332662476,1721411444692,-2940.04548892,0.00034246,14]
[332662477,1721411444702,-3749.97289508,0.00034246,14]
[332662478,1721411444713,-701.78153052,0.00034246,14]
[332662479,1721411445107,-1277.3855744,0.00034246,14]
[332662480,1721411445117,-653.2894256,0.00034246,14]
[332662481,1721411445131,-669.3505744,0.00034246,14]
[332662482,1721411445142,-1063.5,0.00034246,14]
[332662483,1721411445152,-1362.93,0.00034246,14]
[332662484,1721411445161,-1299.48,0.00034246,14]
[332662485,1721411445171,-12312.14,0.00034246,14]
[332662486,1721411445180,-924.96,0.00034246,14]
[332662487,1721411445190,-1762.71,0.00034246,14]
[332662488,1721411445199,-7146.83,0.00034246,14]
[332662489,1721411445211,-500.0,0.00034246,14]
[332662490,1721411445221,-2889.83,0.00034246,14]
[332662491,1721411445230,-977.45,0.00034246,14]
[332662492,1721411445239,-500.0,0.00034246,14]
[332662493,1721411445248,-579.71,0.00034246,14]
[332662494,1721411445257,-4396.85,0.00034246,14]
[332662495,1721411445267,-7179.59,0.00034246,14]
[332662496,1721411445278,-502.88,0.00034246,14]
[332662497,1721411445288,-19689.3,0.00034246,14]
[332662498,1721411445298,-1149.54,0.00034246,14]
[332662499,1721411445310,-3000.95,0.00034246,14]
[332662500,1721411445320,-3150.65,0.00034246,14]
[332662501,1721411445330,-12544.8,0.00034246,14]
[332662502,1721411445341,-1659.47,0.00034246,14]
[332662503,1721411445350,-2369.19,0.00034246,14]
[332662504,1721411445359,-500.0,0.00034246,14]
[332662505,1721411445369,-871.86,0.00034246,14]
[332662508,1721411445380,-500.0,0.00034246,14]
[332662510,1721411445390,-1257.98,0.00034246,14]
[332662512,1721411445399,-15021.37537574,0.00034246,14]
[332662514,1721411445412,-354.726,0.00034246,14]
[332662517,1721411445425,-616.55083574,0.00034246,14]
[332662519,1721411445436,-6000.0,0.00034246,14]
[332662521,1721411445450,-11873.32778852,0.00034246,14]
[332662523,1721411445459,-3.75199099,0.00034246,14]
[332662526,1721411445473,-581.50800901,0.00034246,14]
[332662528,1721411445484,-2554.25,0.00034246,14]
[332662530,1721411445493,-500.0,0.00034246,14]
[332662533,1721411445503,-684.81,0.00034246,14]
[332662536,1721411445513,-6672.10135283,0.00034246,14]
[332662539,1721411445525,-9367.69864717,0.00034246,14]
[332662542,1721411445534,-5448.92,0.00034246,14]
[332662545,1721411445543,-414.09649268,0.00034246,14]
[332662547,1721411445553,-7767.51,0.00034246,14]
[332662549,1721411445562,-4546.82,0.00034246,14]
[332662551,1721411445571,-1115.03,0.00034246,14]
[332662553,1721411445580,-2290.4,0.00034246,14]
[332662554,1721411445590,-15549.95,0.00034246,14]
[332662556,1721411445600,-713.98,0.00034246,14]
[332662558,1721411445610,-1610.24,0.00034246,14]
[332662560,1721411445620,-846.65,0.00034246,14]
[332662562,1721411445631,-500.0,0.00034246,14]
[332662563,1721411445640,-2566.11,0.00034246,14]
[332662564,1721411445650,-748.23,0.00034246,14]
[332662565,1721411445659,-7374.06,0.00034246,14]
[332662566,1721411445670,-12833.28,0.00034246,14]
[332662567,1721411445680,-2320.73,0.00034246,14]
[332662568,1721411445689,-504.43,0.00034246,14]
[332662569,1721411445699,-1344.07,0.00034246,14]
[332662570,1721411445708,-17988.02,0.00034246,14]
[332662571,1721411445717,-6295.21,0.00034246,14]
[332662572,1721411445726,-13689.07,0.00034246,14]
[332662573,1721411445735,-4970.78,0.00034246,14]
[332662574,1721411445744,-1783.42384191,0.00034246,14]
[332662575,1721411445760,-333.52615809,0.00034246,14]
[332662576,1721411445769,-415.19784191,0.00034246,14]
[332662577,1721411445780,-1718.60163644,0.00034246,14]
[332662578,1721411445791,-491.15052165,0.00034246,14]
[332662579,1721411445801,-500.0,0.00034246,14]
[332662580,1721411445810,-91.76682771,0.00034246,14]
[332662585,1721411447076,-150.0,0.00033903,2]
[332662587,1721411447086,-2720.77317229,0.00034246,14]
[332662589,1721411447096,-959.15,0.00034246,14]
[332662591,1721411447106,-1958.01,0.00034246,14]
[332662593,1721411447117,-500.0,0.00034246,14]
[332662595,1721411447128,-3410.57,0.00034246,14]
[332662597,1721411447141,-543.11,0.00034246,14]
[332662599,1721411447152,-7256.02,0.00034246,14]
[332662601,1721411447161,-1843.94,0.00034246,14]
[332662602,1721411447171,-518.99,0.00034246,14]
[332662603,1721411447181,-9013.11,0.00034246,14]
[332662604,1721411447191,-500.0,0.00034246,14]
[332662605,1721411447200,-500.0,0.00034246,14]
[332662606,1721411447210,-2927.81,0.00034246,14]
[332662607,1721411447221,-7140.38,0.00034246,14]
[332662608,1721411447231,-3548.25,0.00034246,14]
[332662609,1721411447242,-3936.33,0.00034246,14]
[332662610,1721411447254,-7123.89,0.00034246,14]
[332662611,1721411447263,-500.0,0.00034246,14]
[332662612,1721411447274,-2418.71,0.00034246,14]
[332662613,1721411447284,-500.0,0.00034246,14]
[332662614,1721411447296,-5061.23,0.00034246,14]
[332662615,1721411447306,-720.78,0.00034246,14]
[332662616,1721411447318,-1099.27,0.00034246,14]
[332662617,1721411447328,-7161.68,0.00034246,14]
[332662618,1721411447339,-4343.92,0.00034246,14]
[332662619,1721411447349,-500.0,0.00034246,14]
[332662620,1721411447360,-1065.22,0.00034246,14]
[332662621,1721411447369,-5135.62,0.00034246,14]
[332662622,1721411447381,-16158.34,0.00034246,14]
[332662623,1721411447390,-500.0,0.00034246,14]
[332662624,1721411447400,-2158.0,0.00034246,14]
[332662626,1721411447409,-845.57,0.00034246,14]
[332662627,1721411447419,-500.0,0.00034246,14]
[332662629,1721411447428,-5083.59,0.00034246,14]
[332662631,1721411447438,-921.29,0.00034246,14]
[332662633,1721411447447,-9737.63,0.00034246,14]
[332662634,1721411447457,-2072.08,0.00034246,14]
[332662635,1721411447467,-512.0378227,0.00034246,14]
[332662636,1721411447476,-1561.89,0.00034246,14]
[332662637,1721411447485,-4838.92,0.00034246,14]
[332662638,1721411447495,-6611.96,0.00034246,14]
[332662639,1721411447504,-500.0,0.00034246,2]
[332662640,1721411447514,-500.0,0.00034246,14]
[332662641,1721411447524,-719.18,0.00034246,14]
[332662643,1721411447533,-500.0,0.00034246,14]
[332662644,1721411447543,-500.0,0.00034246,14]
[332662645,1721411447552,-8105.6,0.00034246,14]
[332662646,1721411447561,-500.0,0.00034246,14]
[332662647,1721411447570,-4351.25,0.00034246,14]
[332662648,1721411447580,-673.49,0.00034246,14]
[332662649,1721411447590,-1381.41,0.00034246,14]
[332662650,1721411447599,-1724.11,0.00034246,14]
[332662651,1721411447608,-2493.32,0.00034246,14]
[332662652,1721411447618,-4816.46,0.00034246,14]
[332662653,1721411447627,-3427.99,0.00034246,14]
[332662654,1721411447640,-809.11,0.00034246,14]
[332662655,1721411447650,-500.0,0.00034246,14]
[332662656,1721411447659,-14395.48,0.00034246,14]
[332662657,1721411447669,-4458.07,0.00034246,14]
[332662658,1721411447682,-1021.19,0.00034246,14]
[332662659,1721411447691,-2412.68,0.00034246,14]
[332662660,1721411447701,-489.60493629,0.00034246,14]
[332662661,1721411447711,-612.06,0.00034246,14]
[332662662,1721411447720,-711.73,0.00034246,14]
[332662663,1721411447730,-7014.28,0.00034246,14]
[332662664,1721411447740,-5078.8,0.00034246,14]
[332662665,1721411447750,-579.04,0.00034246,14]
[332662666,1721411447759,-1084.8,0.00034246,14]
[332662667,1721411447769,-986.06,0.00034246,14]
[332662668,1721411447778,-3268.33,0.00034246,14]
[332662669,1721411447787,-9000.65,0.00034246,14]
[332662670,1721411447796,-4940.01,0.00034246,14]
[332662671,1721411447805,-4849.94,0.00034246,14]
[332662672,1721411447815,-9236.16,0.00034246,14]
[332662673,1721411447824,-1329.79,0.00034246,14]
[332662674,1721411447833,-1759.67,0.00034246,14]
[332662675,1721411447842,-500.0,0.00034246,14]
[332662676,1721411447851,-8561.66,0.00034246,14]
[332662677,1721411447860,-500.0,0.00034246,14]
[332662678,1721411447869,-500.0,0.00034246,14]
[332662679,1721411447881,-500.0,0.00034246,14]
[332662680,1721411447890,-7088.72,0.00034246,14]
[332662681,1721411447899,-9053.07,0.00034246,14]
[332662682,1721411447908,-7365.65,0.00034246,14]
[332662683,1721411447917,-1387.6,0.00034246,14]
[332662684,1721411447926,-3770.05,0.00034246,14]
[332662685,1721411447935,-1804.67,0.00034246,14]
[332662686,1721411447944,-1637.67,0.00034246,14]
[332662687,1721411447953,-687.74,0.00034246,14]
[332662688,1721411447962,-403.24674757,0.00034246,14]
[332662689,1721411447971,-500.0,0.00034246,14]
[332662690,1721411447980,-500.0,0.00034246,14]
[332662691,1721411447989,-500.0,0.00034246,14]
[332662692,1721411447999,-500.0,0.00034246,14]
[332662693,1721411448008,-6733.43,0.00034246,14]
[332662694,1721411448018,-1179.7,0.00034246,14]
[332662695,1721411448027,-7685.85,0.00034246,14]
[332662696,1721411448036,-1025.91,0.00034246,14]
[332662697,1721411448046,-2940.65,0.00034246,14]
[332662698,1721411448055,-673.81,0.00034246,14]
[332662699,1721411448064,-5069.82,0.00034246,14]
[332662700,1721411448073,-3890.22,0.00034246,14]
[332662701,1721411448082,-594.53,0.00034246,14]
[332662702,1721411448092,-3237.13,0.00034246,14]
[332662703,1721411448101,-1055.49,0.00034246,14]
[332662704,1721411448110,-500.0,0.00034246,14]
[332662705,1721411448120,-500.0,0.00034246,14]
[332662706,1721411448130,-2282.97,0.00034246,14]
[332662707,1721411448143,-2071.37,0.00034246,2]
[332662708,1721411448153,-5864.93,0.00034246,14]
[332662709,1721411448162,-500.0,0.00034246,14]
[332662710,1721411448171,-2285.44,0.00034246,14]
[332662711,1721411448182,-1204.2,0.00034246,14]
[332662712,1721411448191,-500.0,0.00034246,14]
[332662713,1721411448201,-6802.64,0.00034246,14]
[332662714,1721411448213,-1957.81,0.00034246,14]
[332662715,1721411448223,-810.81,0.00034246,14]
[332662716,1721411448233,-1244.68,0.00034246,14]
[332662717,1721411448242,-844.39,0.00034246,14]
[332662718,1721411448252,-500.0,0.00034246,14]
[332662719,1721411448262,-3588.33,0.00034246,14]
[332662720,1721411448272,-854.9,0.00034246,14]
[332662721,1721411448282,-1951.81,0.00034246,14]
[332662722,1721411448291,-3906.45,0.00034246,14]
[332662723,1721411448301,-865.64,0.00034246,14]
[332662724,1721411448311,-3507.5,0.00034246,14]
[332662725,1721411448321,-2603.35,0.00034246,14]
[332662726,1721411448331,-1805.65,0.00034246,14]
[332662727,1721411448341,-1159.4,0.00034246,14]
[332662728,1721411448350,-6200.88,0.00034246,14]
[332662729,1721411448360,-500.0,0.00034246,14]
[332662730,1721411448372,-500.0,0.00034246,14]
[332662731,1721411448384,-896.2,0.00034246,14]
[332662732,1721411448394,-2326.61,0.00034246,14]
[332662733,1721411448403,-5674.73,0.00034246,14]
[332662734,1721411448413,-1819.85,0.00034246,14]
[332662735,1721411448424,-15551.55,0.00034246,14]
[332662736,1721411448434,-500.0,0.00034246,14]
[332662737,1721411448444,-2542.41,0.00034246,14]
[332662738,1721411448454,-1130.18,0.00034246,14]
[332662739,1721411448464,-500.0,0.00034246,14]
[332662740,1721411448473,-500.0,0.00034246,14]
[332662741,1721411448483,-3436.5,0.00034246,14]
[332662742,1721411448493,-12275.18,0.00034246,14]
[332662743,1721411448502,-503.90003523,0.00034246,14]
[332662744,1721411448512,-540.53,0.00034246,14]
[332662745,1721411448522,-7174.87,0.00034246,14]
[332662746,1721411448532,-1873.05,0.00034246,14]
[332662747,1721411448542,-609.14,0.00034246,14]
[332662748,1721411448553,-3712.54,0.00034246,14]
[332662749,1721411448562,-1743.57,0.00034246,14]
[332662750,1721411448571,-20243.8,0.00034246,14]
[332662751,1721411448580,-3792.36,0.00034246,14]
[332662752,1721411448590,-794.64,0.00034246,14]
[332662753,1721411448600,-5828.93,0.00034246,14]
[332662754,1721411448610,-522.89,0.00034246,14]
[332662755,1721411448619,-500.0,0.00034246,14]
[332662756,1721411448628,-5889.56,0.00034246,14]
[332662757,1721411448639,-332.12342577,0.00034246,14]
[332662758,1721411448648,-525.83,0.00034246,14]
[332662759,1721411448657,-500.0,0.00034246,14]
[332662760,1721411448666,-10947.61,0.00034246,14]
[332662761,1721411448675,-11019.54,0.00034246,14]
[332662762,1721411448685,-5912.02,0.00034246,14]
[332662763,1721411448694,-500.0,0.00034246,14]
[332662764,1721411448704,-500.0,0.00034246,14]
[332662765,1721411448713,-2246.16,0.00034246,14]
[332662766,1721411448722,-8229.51,0.00034246,14]
[332662767,1721411448731,-4655.89,0.00034246,14]
[332662768,1721411448740,-1033.47,0.00034246,14]
[332662769,1721411448750,-1465.61,0.00034246,14]
[332662770,1721411448760,-1464.16,0.00034246,14]
[332662771,1721411448770,-4196.57,0.00034246,14]
[332662772,1721411448779,-5345.19,0.00034246,14]
[332662773,1721411448788,-1910.19,0.00034246,14]
[332662774,1721411448798,-1194.16,0.00034246,14]
[332662775,1721411448807,-239.22507989,0.00034246,14]
[332662776,1721411448816,-573.17,0.00034246,14]
[332662777,1721411448825,-500.0,0.00034246,14]
[332662778,1721411448834,-10933.25,0.00034246,14]
[332662779,1721411448844,-500.0,0.00034246,14]
[332662780,1721411448853,-1409.33,0.00034246,14]
[332662781,1721411448862,-500.0,0.00034246,14]
[332662782,1721411448871,-1154.96,0.00034246,14]
[332662783,1721411448881,-3674.93,0.00034246,14]
[332662784,1721411448890,-3354.51,0.00034246,14]
[332662785,1721411448899,-4811.1,0.00034246,14]
[332662786,1721411448909,-1405.5,0.00034246,14]
[332662787,1721411448918,-735.83,0.00034246,14]
[332662788,1721411448929,-1524.71,0.00034246,14]
[332662789,1721411448939,-1682.97,0.00034246,14]
[332662790,1721411448949,-3837.86,0.00034246,14]
[332662791,1721411448959,-5839.3,0.00034246,14]
[332662792,1721411448969,-500.0,0.00034246,14]
[332662793,1721411448979,-1215.13,0.00034246,14]
[332662794,1721411448989,-5878.24,0.00034246,14]
[332662795,1721411448999,-500.0,0.00034246,14]
[332662796,1721411449009,-500.0,0.00034246,14]
[332662797,1721411449020,-884.11,0.00034246,14]
[332662798,1721411449029,-1263.94,0.00034246,14]
[332662799,1721411449039,-305.61858508,0.00034246,14]
[332662800,1721411449050,-500.0,0.00034246,14]
[332662801,1721411449060,-1861.13,0.00034246,14]
[332662802,1721411449071,-4030.15,0.00034246,14]
[332662803,1721411449081,-575.36,0.00034246,14]
[332662804,1721411449091,-1017.03,0.00034246,14]
[332662805,1721411449102,-169.31647959,0.00034246,14]
[332662806,1721411449112,-500.0,0.00034246,14]
[332662807,1721411449122,-1691.71,0.00034246,14]
[332662808,1721411449138,-500.0,0.00034246,14]
[332662809,1721411449148,-1374.24,0.00034246,14]
[332662810,1721411449158,-768.4,0.00034246,14]
[332662811,1721411449168,-500.0,0.00034246,14]
[332662812,1721411449179,-1697.84,0.00034246,14]
[332662813,1721411449189,-2559.7,0.00034246,14]
[332662814,1721411449199,-500.0,0.00034246,14]
[332662815,1721411449209,-500.0,0.00034246,14]
[332662816,1721411449219,-624.46,0.00034246,14]
[332662817,1721411449230,-1946.59,0.00034246,14]
[332662818,1721411449239,-2272.36,0.00034246,14]
[332662819,1721411449249,-500.0,0.00034246,14]
[332662820,1721411449258,-474.28029239,0.00034246,14]
[332662821,1721411449268,-1917.13,0.00034246,14]
[332662822,1721411449279,-500.0,0.00034246,14]
[332662823,1721411449289,-500.0,0.00034246,14]
[332662824,1721411449299,-500.0,0.00034246,14]
[332662825,1721411449309,-500.0,0.00034246,14]
[332662826,1721411449318,-3027.94,0.00034246,14]
[332662827,1721411449328,-500.0,0.00034246,14]
[332662828,1721411449338,-973.22,0.00034246,14]
[332662829,1721411449347,-500.0,0.00034246,14]
[332662830,1721411449357,-500.0,0.00034246,14]
[332662831,1721411449367,-2408.88,0.00034246,14]
[332662832,1721411449377,-500.0,0.00034246,14]
[332662833,1721411449392,-731.9,0.00034246,14]
[332662834,1721411449403,-646.1,0.00034246,14]
[332662835,1721411449413,-500.0,0.00034246,14]
[332662836,1721411449425,-586.55,0.00034246,14]
[332662837,1721411449436,-500.0,0.00034246,14]
[332662838,1721411449447,-500.0,0.00034246,14]
[332662839,1721411449458,-597.62,0.00034246,14]
[332662840,1721411449468,-1178.13,0.00034246,14]
[332662841,1721411449478,-2668.54,0.00034246,14]
[332662842,1721411449488,-1314.6,0.00034246,14]
[332662843,1721411449499,-2734.59,0.00034246,14]
[332662844,1721411449508,-2830.23,0.00034246,14]
[332662845,1721411449518,-632.52,0.00034246,14]
[332662846,1721411449528,-1416.89,0.00034246,14]
[332662847,1721411449539,-695.28,0.00034246,120]
[332662848,1721411449550,-536.15750314,0.00034246,14]
[332662849,1721411449560,-1341.92,0.00034246,14]
[332662850,1721411449570,-4660.25,0.00034246,14]
[332662851,1721411449579,-2241.29,0.00034246,14]
[332662852,1721411449587,-500.0,0.00034246,14]
[332662853,1721411449597,-957.11,0.00034246,14]
[332662854,1721411449606,-877.56,0.00034246,14]
[332662855,1721411449616,-500.0,0.00034246,14]
[332662856,1721411449626,-1477.9,0.00034246,14]
[332662857,1721411449638,-500.0,0.00034246,14]
[332662858,1721411449648,-500.0,0.00034246,14]
[332662859,1721411449657,-500.0,0.00034246,14]
[332662860,1721411449667,-597.23,0.00034246,14]
[332662861,1721411449676,-500.0,0.00034246,14]
[332662862,1721411449686,-689.3,0.00034246,14]
[332662863,1721411449696,-1046.23,0.00034246,14]
[332662864,1721411449706,-1705.13,0.00034246,14]
[332662865,1721411449716,-500.0,0.00034246,14]
[332662866,1721411449725,-778.74,0.00034246,14]
[332662867,1721411449735,-679.86,0.00034246,14]
[332662868,1721411449745,-500.0,0.00034246,14]
[332662869,1721411449755,-542.8,0.00034246,14]
[332662870,1721411449765,-500.0,0.00034246,14]
[332662871,1721411449775,-500.0,0.00034246,14]
[332662872,1721411449785,-843.49,0.00034246,14]
[332662873,1721411449797,-500.0,0.00034246,14]
[332662874,1721411449807,-500.0,0.00034246,14]
[332662875,1721411449816,-500.0,0.00034246,14]
[332662876,1721411449826,-500.0,0.00034246,14]
[332662877,1721411449836,-500.0,0.00034246,14]
[332662878,1721411449846,-500.0,0.00034246,14]
[332662879,1721411449855,-500.0,0.00034246,14]
[332662880,1721411449865,-515.08631785,0.00034246,14]
[332662881,1721411449874,-500.0,0.00034246,14]
[332662882,1721411449886,-345.19,0.00034246,14]
[332662883,1721411449896,-754.08,0.00034246,14]
[332662884,1721411449906,-545.47,0.00034246,14]
[332662885,1721411449917,-2912.7,0.00034246,14]
[332662886,1721411449926,-500.0,0.00034246,14]
[332662887,1721411449935,-500.0,0.00034246,14]
[332662888,1721411449945,-500.0,0.00034246,14]
[332662889,1721411449955,-500.0,0.00034246,14]
[332662890,1721411449965,-500.0,0.00034246,14]
[332662891,1721411449975,-170.96789678,0.00034246,2]
[332662892,1721411449986,-2500.0,0.00034246,14]
[332662893,1721411449997,-2500.0,0.00034246,14]
[332662894,1721411450008,-2500.0,0.00034246,14]
[332662895,1721411450020,-2500.0,0.00034246,14]
[332662896,1721411450031,-2500.0,0.00034246,14]
[332662897,1721411450041,-2500.0,0.00034246,14]
[332662898,1721411450052,-1995.96465347,0.00034246,14]
[332662899,1721411450062,-151.0,0.00034246,7]
[332662900,1721411450072,-151.0,0.00034246,7]
[332662901,1721411450283,-268.826759,0.00034246,7]
[332662902,1721411450293,-205.5318024,0.00034246,7]
[332662903,1721411450303,-398.839123,0.00034246,7]
[332662904,1721411450313,-398.839123,0.00034246,7]
[332662905,1721411450323,-398.839123,0.00034246,7]
[332662906,1721411450332,-398.839123,0.00034246,7]
[332662907,1721411450342,-398.839123,0.00034246,7]
[332662908,1721411450351,-398.839123,0.00034246,7]
[332662909,1721411450360,-398.839123,0.00034246,7]
[332662910,1721411450370,-398.839123,0.00034246,7]
[332662911,1721411450382,-398.839123,0.00034246,7]
[332662912,1721411450391,-398.839123,0.00034246,7]
[332662913,1721411450400,-398.839123,0.00034246,7]
[332662914,1721411450409,-398.839123,0.00034246,7]
[332662915,1721411450419,-398.839123,0.00034246,7]
[332662916,1721411450428,-398.839123,0.00034246,7]
[332662917,1721411450437,-398.839123,0.00034246,7]
[332662918,1721411450447,-398.839123,0.00034246,7]
[332662919,1721411450456,-428.74249647,0.00034246,2]
[332662920,1721411450466,-500.0,0.00034249,14]
[332662921,1721411450477,-4602.9676207,0.0003425,2]
[332662922,1721411450488,-273.4728087,0.0003425,2]
[332662923,1721411450498,-858.5534332,0.00034258,2]
[332662924,1721411450507,-366.5,0.00034274,2]
[332662925,1721411450517,-336.37464076,0.00034281,14]
[332662926,1721411450526,-561.17552208,0.00034281,14]
[332662927,1721411450535,-500.0,0.00034281,14]
[332662928,1721411450545,-500.0,0.00034281,14]
[332662929,1721411450554,-500.0,0.00034281,14]
[332662930,1721411450563,-500.0,0.00034281,14]
[332662931,1721411450574,-161.77,0.00034281,14]
[332662932,1721411450584,-618.61295546,0.00034281,14]
[332662933,1721411450595,-294.77265863,0.00034281,14]
[332662934,1721411450605,-183.64362293,0.00034283,2]
[332662935,1721411450616,-150.77817906,0.00034283,2]
[332662936,1721411450628,-248.6048743,0.00034283,2]
[332662937,1721411450639,-2038.18936706,0.0003429,15]
[332662938,1721411450648,-3221.57,0.000343,14]
[332662939,1721411450659,-582.26,0.000343,2]
[332662940,1721411450670,-500.0,0.00034336,14]
[332662941,1721411450681,-500.0,0.00034336,14]
[332662942,1721411450692,-500.0,0.00034336,14]
[332662943,1721411450702,-500.0,0.00034336,14]
[332662944,1721411450712,-1156.94183045,0.00034357,10]
[332662945,1721411450723,-743.0464303,0.00034359,2]
[332662946,1721411450733,-627.5394274,0.00034359,2]
[332662947,1721411450743,-3983.69924,0.00034359,2]
[332662948,1721411450752,-3364.4308593,0.00034359,2]
[332662949,1721411450762,-273.4728087,0.00034359,2]
[332662950,1721411450771,-273.4728087,0.00034359,2]
[332662951,1721411450780,-329.09,0.00034361,2]
[332662952,1721411450789,-500.0,0.00034371,14]
[332662953,1721411450799,-500.0,0.00034371,14]
[332662954,1721411450808,-240.44036319,0.00034371,14]
[332662955,1721411450817,-500.0,0.00034372,14]
[332662956,1721411450827,-500.0,0.00034372,14]
[332662957,1721411450836,-500.0,0.00034372,14]
[332662958,1721411450847,-500.0,0.00034372,14]
[332662959,1721411450858,-500.0,0.00034372,14]
[332662960,1721411450868,-364.12,0.00034372,14]
[332662961,1721411450879,-642.92,0.00034372,14]
[332662962,1721411450891,-500.0,0.00034372,14]
[332662963,1721411450902,-1232.77118268,0.0003438,2]
[332662964,1721411450912,-311.1,0.00034381,14]
[332662965,1721411450922,-500.0,0.00034382,2]
[332662966,1721411450931,-500.0,0.00034383,14]
[332662967,1721411450940,-729.12,0.00034383,14]
[332662968,1721411450949,-500.0,0.00034383,14]
[332662969,1721411450957,-500.0,0.00034383,14]
[332662970,1721411450966,-964.89,0.00034383,14]
[332662971,1721411450975,-500.0,0.00034383,14]
[332662972,1721411450983,-1397.42,0.00034383,14]
[332662973,1721411450992,-507.4,0.00034383,14]
[332662974,1721411451001,-1273.65,0.00034383,14]
[332662975,1721411451011,-505.3704454,0.00034383,14]
[332662976,1721411451020,-505.30459277,0.00034383,14]
[332662977,1721411451030,-792.24,0.00034383,14]